lending/lending_fUSD_20240110
["ID","MTS","AMOUNT","RATE_DAILY","PERIOD"]
[311110312,1704911432511,-8455.33354588,0.00022898,2]
[311110313,1704911432528,-335.95599368,0.00022898,2]
[311110314,1704911432543,-8310.39537342,0.00022898,2]
[311110315,1704911432554,-31607.41045734,0.00022898,2]
[311110316,1704911432568,-1127.3767494,0.00022898,2]
[311110317,1704911432579,-878.95343851,0.00022898,2]
[311110318,1704911432610,-12103.23074177,0.00022898,2]
[311110319,1704911432621,-300.0,0.00022899,2]
[311110320,1704911432631,-7148.9108,0.000229,2]
[311110321,1704911432640,-5591.9928,0.000229,2]
[311110322,1704911432649,-783.2279,0.000229,2]
[311110323,1704911432659,-27805.97527448,0.000229,2]
[311110324,1704911432671,-12168.11059009,0.000229,2]
[311110325,1704911432682,-1922.96638505,0.000229,2]
[311110326,1704911432692,-535.3158877,0.000229,2]
[311110351,1704911437730,-5434.49206268,0.000229,2]
[311110352,1704911437740,-794.3719,0.000229,2]
[311110353,1704911437749,-165.75452077,0.000229,2]
[311110354,1704911437758,-900.80727776,0.000229,2]
[311110355,1704911437768,-319.71422619,0.000229,2]
[311110356,1704911437777,-249.74753096,0.000229,2]
[311110357,1704911437792,-205.87457036,0.000229,2]
[311110358,1704911437802,-185.21540496,0.000229,2]
[311110359,1704911437811,-150.0,0.00022907,2]
[311110360,1704911437820,-116.76657539,0.00022914,2]
[311110361,1704911437831,-33.23342461,0.00022914,2]
[311110362,1704911437841,-150.0,0.00022914,2]
[311110363,1704911437850,-150.0,0.00022915,2]
[311110364,1704911437859,-150.0,0.00022916,2]
[311110365,1704911437869,-150.0,0.00022922,2]
[311110366,1704911437878,-150.0,0.00022923,2]
[311110367,1704911437887,-150.0,0.00022924,2]
[311110368,1704911437896,-159.83507652,0.00022925,2]
[311110369,1704911437905,-730.57568454,0.00022927,2]
[311110370,1704911437914,-162.97,0.00022927,2]
[311110371,1704911437923,-1500.0,0.00022929,2]
[311110372,1704911437932,-150.0,0.00022933,2]
[311110373,1704911437942,-150.0,0.00022936,2]
[311110374,1704911437950,-300.0,0.00022939,2]
[311110375,1704911437959,-150.0,0.0002294,2]
[311110376,1704911437968,-150.0,0.0002294,2]
[311110377,1704911437978,-229.58564176,0.00022944,2]
[311110378,1704911437987,-150.0,0.00022944,2]
[311110379,1704911437997,-150.0,0.00022945,2]
[311110380,1704911438006,-150.0,0.00022961,2]
[311110381,1704911438015,-150.0,0.00022962,2]
[311110382,1704911438025,-150.0,0.00022962,2]
[311110383,1704911438034,-150.0,0.00022965,2]
[311110384,1704911438046,-150.0,0.00022965,2]
[311110386,1704911438256,-150.0,0.0002297,2]
[311110388,1704911438265,-150.0,0.00022976,2]
[311110390,1704911438276,-150.0,0.00022976,2]
[311110392,1704911438286,-387.7407565,0.00022976,2]
[311110393,1704911438295,-150.0,0.00022977,2]
[311110394,1704911438305,-300.0,0.00022979,2]
[311110396,1704911438314,-150.0,0.00022986,2]
[311110398,1704911438324,-150.0,0.00022986,2]
[311110400,1704911438333,-150.0,0.00022987,2]
[311110402,1704911438342,-300.0,0.00022988,2]
[311110404,1704911438352,-171.55454798,0.0002299,2]
[311110406,1704911438362,-150.0,0.00022991,2]
[311110408,1704911438371,-150.0,0.00022992,2]
[311110410,1704911438380,-150.0,0.00022997,2]
[311110412,1704911438389,-696.46647729,0.00022998,2]
[311110414,1704911438398,-572.43746328,0.00022998,2]
[311110416,1704911438407,-919.32858363,0.00022998,2]
[311110418,1704911438416,-155.0,0.00022998,2]
[311110420,1704911438425,-756.90660154,0.00022998,2]
[311110422,1704911438435,-334.45186958,0.00022998,2]
[311110424,1704911438450,-13820.56895477,0.00022998,2]
[311110427,1704911438462,-20744.18218044,0.00022998,2]
[311110429,1704911438472,-202.84578995,0.00022998,2]
[311110431,1704911438481,-161.51310242,0.00022998,2]
[311110433,1704911438490,-372.44307504,0.00022998,2]
[311110435,1704911438499,-514.52455724,0.00022998,2]
[311110437,1704911438508,-531.03553807,0.00022998,2]
[311110439,1704911438518,-340.15486376,0.00022998,2]
[311110441,1704911438527,-9867.62534316,0.00022998,2]
[311110443,1704911438538,-1369.41987797,0.00022998,2]
[311110445,1704911438553,-4447.08141004,0.00022998,2]
[311110447,1704911438562,-641.51104916,0.00022999,2]
[311110449,1704911438571,-173.43900133,0.00022999,2]
[311110452,1704911438580,-284.21067974,0.00022999,2]
[311110453,1704911438590,-155.19605017,0.00022999,2]
[311110456,1704911438599,-7625.43768083,0.00022999,2]
[311110458,1704911438610,-209.14271268,0.00022999,2]
[311110460,1704911438619,-155.41368589,0.00022999,2]
[311110462,1704911438628,-155.4439,0.00022999,2]
[311110464,1704911438638,-524.10489141,0.00022999,2]
[311110466,1704911438647,-285.28482547,0.00022999,2]
[311110468,1704911438656,-794744.52915631,0.00023,2]
[311110471,1704911438675,-15548.54327604,0.00023,2]
[311110473,1704911438686,-391.45736558,0.00023,2]
[311110637,1704911440192,-25674.03139659,0.00023,2]
[311110891,1704911442618,-512.76120949,0.00023,2]
[311110899,1704911442676,-1385.47,0.00023,2]
[311110918,1704911442847,-29976.49490611,0.00023,2]
[311110992,1704911443526,-359.53098938,0.00022999,2]
[311110994,1704911443535,-41.94793727,0.00023,2]
[311111000,1704911443588,-573467.40791444,0.00023,2]
[311111002,1704911443598,-113073.5252917,0.00023,2]
[311111005,1704911443608,-2000.0,0.00023,2]
[311111007,1704911443617,-200.0,0.00023,2]
[311111009,1704911443625,-932.61376497,0.00023,2]
[311111011,1704911443634,-162.97,0.00023092,2]
[311111013,1704911443643,-159.88,0.0002312,2]
[311111015,1704911443653,-174.23,0.00023228,2]
[311111017,1704911443662,-163.26,0.0002323,2]
[311111019,1704911443670,-162.97,0.00023256,2]
[311111021,1704911443679,-462.85042746,0.00023288,2]
[311111023,1704911443687,-152.53,0.00023291,2]
[311111025,1704911443696,-159.88,0.00023584,2]
[311111028,1704911443713,-152.53,0.0002373,2]
[311111030,1704911443726,-174.23,0.00023781,2]
[311111032,1704911443736,-537.46,0.00023783,2]
[311111034,1704911443746,-159.88,0.00024048,2]
[311111036,1704911443756,-152.53,0.0002417,2]
[311111038,1704911443766,-31638.25762603,0.00024226,2]
[311111040,1704911443776,-167.25,0.00024297,2]
[311111042,1704911443786,-174.23,0.00024334,2]
[311111044,1704911443796,-163.26,0.00024337,2]
[311111046,1704911443807,-159.88,0.00024511,2]
[311111049,1704911443818,-340.22,0.0002455,2]
[311111051,1704911443829,-659.77,0.00024554,2]
[311111053,1704911443839,-250.0,0.00024658,2]
[311111055,1704911443850,-237.33,0.00024704,2]
[311111057,1704911443864,-425.28,0.00024719,2]
[311111059,1704911443874,-537.46,0.00024761,2]
[311111061,1704911443885,-159.88,0.00024975,2]
[311111063,1704911443896,-526.55897703,0.00025,2]
[311111065,1704911443907,-532.76485975,0.00025,2]
[311111067,1704911443918,-350.0,0.00025,3]
[311111069,1704911443928,-455.62210129,0.00025325,2]
[311111071,1704911443939,-873.70033259,0.00025339,2]
[311111073,1704911443949,-159.88,0.00025439,2]
[311111075,1704911443959,-158.85,0.00025551,2]
[311111077,1704911443969,-237.33,0.00025604,2]
[311111079,1704911443979,-537.46,0.0002574,2]
[311111081,1704911443989,-517.88476727,0.00025754,2]
[311111083,1704911443999,-431.57409613,0.00025754,2]
[311111085,1704911444010,-4376.93557474,0.00025803,2]
[311111087,1704911444020,-159.88,0.00025903,2]
[311111089,1704911444029,-767.91805224,0.00026,2]
[311111091,1704911444039,-150.0,0.00026079,2]
[311111093,1704911444048,-179.14,0.00026191,2]
[311111095,1704911444058,-159.03,0.00026328,2]
[311111097,1704911444067,-159.88,0.00026367,2]
[311111099,1704911444077,-237.33,0.00026504,2]
[311111101,1704911444086,-2912.97,0.00026575,2]
[311111103,1704911444095,-1637.95,0.00026575,2]
[311111106,1704911444105,-259.05,0.00026575,2]
[311111108,1704911444118,-537.46,0.00026718,2]
[311111110,1704911444127,-340.22,0.00026814,2]
[311111112,1704911444137,-400.0,0.00027,3]
[311111114,1704911444147,-205.0,0.00027026,2]
[311111116,1704911444156,-659.77,0.00027282,2]
[311111118,1704911444166,-2500.0,0.00027397,4]
[311111120,1704911444176,-250.0,0.00027397,2]
[311111122,1704911444187,-3581.22,0.00027397,2]
[311111124,1704911444197,-250.0,0.000274,2]
[311111126,1704911444206,-237.33,0.00027403,2]
[311111128,1704911444219,-167.09,0.00027465,2]
[311111130,1704911444229,-425.28,0.00027465,2]
[311111132,1704911444238,-537.46,0.00027697,2]
[311111134,1704911444248,-455.62210129,0.00027749,3]
[311111137,1704911444258,-155.0,0.00028,2]
[311111139,1704911444268,-237.33,0.00028303,2]
[311111141,1704911444277,-167.25,0.00028307,2]
[311111143,1704911444286,-537.46,0.00028675,2]
[311111145,1704911444295,-150.97896658,0.000288,2]
[311111147,1704911444305,-200.0,0.000288,5]
[311111149,1704911444314,-59525.95923731,0.00028898,2]
[311111151,1704911444325,-165.75452077,0.000289,2]
[311111153,1704911444334,-319.71422618,0.000289,2]
[311111155,1704911444344,-371042.18529642,0.00029,2]
[311111157,1704911444353,-450.0,0.00029,3]
[311111159,1704911444365,-340.22,0.00029078,2]
[311111161,1704911444374,-237.33,0.00029202,2]
[311111163,1704911444383,-155.0,0.0002937,2]
[311111165,1704911444392,-251.86806399,0.000295,3]
[311111167,1704911444401,-205.0,0.00029563,6]
[311111169,1704911444410,-537.46,0.00029654,2]
[311111171,1704911444419,-1000.0,0.00029699,2]
[311111173,1704911444429,-9152.81,0.000297,2]
[311111175,1704911444439,-10771.38,0.000297,2]
[311111177,1704911444448,-8992.25,0.000297,2]
[311111179,1704911444457,-321.1,0.000297,2]
[311111182,1704911444467,-155.0,0.0002971,2]
[311111183,1704911444476,-89411.65040278,0.000298,2]
[311111211,1704911444794,-9021.77236401,0.000298,2]
[311111213,1704911444808,-251.08822999,0.000298,2]
[311111337,1704911445820,-219.23328722,0.000229,2]
[311111339,1704911445830,-313.53157253,0.00022999,2]
[311111351,1704911445937,-314.38574848,0.00022999,2]
[311111353,1704911445947,-4314.46425152,0.000298,2]
[311112024,1704911492914,3405.15726372,0.000225,2]
[311112025,1704911536310,269.07,0.00019908,2]
[311112026,1704911536537,269.07,0.00022172,2]
[311112027,1704911610204,172.97,0.00021826,2]
[311112028,1704911762980,167.09,0.00021826,2]
[311112029,1704911783865,736.09,0.00021826,2]
[311112030,1704911812163,187.99,0.00021826,2]
[311112031,1704911891953,500.0,0.00021826,2]
[311112032,1704911990620,242.16,0.00019908,2]
[311112033,1704911990814,242.16,0.00022172,2]
[311112034,1704912009590,225.02,0.00021826,2]
[311112035,1704912139040,158.85,0.00022044,2]
[311112044,1704912614254,283.84561309,0.00022044,2]
[311112045,1704912614963,282.78782843,0.00022044,2]
[311112046,1704912615215,155.0,0.00022044,2]
[311112047,1704912615324,1031.99438221,0.00022044,2]
[311112048,1704912615887,1096.02714429,0.00022044,2]
[311112049,1704912617737,155.0,0.00022044,2]
[311112050,1704912618075,3197.79936034,0.00022044,2]
[311112051,1704912618596,531.67628362,0.00022044,2]
[311112052,1704912618955,212.1575122,0.00022044,2]
[311112053,1704912619617,155.0,0.00022044,2]
[311112054,1704912620347,155.0,0.00022044,2]
[311112055,1704912620590,1597.16146688,0.00017635,2]
[311112056,1704912621074,281.89719396,0.00022044,2]
[311112057,1704912621343,234.60743035,0.00022044,2]
[311112058,1704912621370,156.55972097,0.00022044,2]
[311112059,1704912621425,854.32637403,0.00022044,2]
[311112060,1704912621994,155.0,0.00022044,2]
[311112061,1704912623205,882.45739522,0.00022044,2]
[311112062,1704912625826,226.69801692,0.00022044,2]
[311112063,1704912626164,520.78591039,0.00022044,2]
[311112064,1704912629357,176.98991788,0.00022044,2]
[311112065,1704912630733,155.0,0.00022044,2]
[311112067,1704912632025,-627.91732101,0.00023677,2]
[311112068,1704912632035,-360.33822996,0.00023678,2]
[311112069,1704912632044,-172.97,0.00024009,2]
[311112070,1704912632053,-205.0,0.00024026,2]
[311112071,1704912632063,-736.09,0.00024554,2]
[311112072,1704912632072,-217.94,0.00024976,2]
[311112073,1704912632082,-350.0,0.00025,3]
[311112074,1704912632091,-161.73317498,0.0002564,2]
[311112075,1704912632102,-756.85744404,0.000263,2]
[311112076,1704912632111,-300.0,0.00026474,2]
[311112077,1704912632120,-2427.47,0.00026575,2]
[311112078,1704912632129,-1364.95,0.00026575,2]
[311112079,1704912632138,-155.57286791,0.00026638,2]
[311112080,1704912632148,-2011.14923337,0.00026819,10]
[311112082,1704912632157,-411.12,0.00026894,2]
[311112083,1704912632166,-187.99,0.00026894,2]
[311112084,1704912632175,-215.87,0.00026894,2]
[311112085,1704912632185,-1800.16450968,0.00026944,28]
[311112086,1704912632194,-150.0,0.00026948,2]
[311112087,1704912632204,-400.0,0.00027,3]
[311112089,1704912632213,-205.0,0.00027024,6]
[311112091,1704912632222,-217.94,0.0002724,2]
[311112093,1704912632231,-736.09,0.00027282,2]
[311112095,1704912632240,-210.01,0.00027372,2]
[311112097,1704912632249,-250.0,0.00027397,2]
[311112099,1704912632258,-1158.08,0.00027397,4]
[311112101,1704912632267,-250.0,0.000274,2]
[311112103,1704912632277,-109.99516022,0.00028118,2]
[311112108,1704912632310,283.84561309,0.00022044,2]
[311112134,1704912633056,282.78782843,0.00022044,2]
[311112135,1704912635190,161.1185976,0.00022044,2]
[311112136,1704912637605,155.0,0.00022044,2]
[311112154,1704912637867,-205.0,0.00024026,2]
[311112156,1704912637877,-762.61090531,0.00028118,2]
[311112158,1704912637886,-154.50194291,0.0002835,6]
[311112160,1704912637897,-210.01,0.0002835,2]
[311112162,1704912637906,-161.73317498,0.00028393,2]
[311112164,1704912637916,-2248.00674586,0.00028414,2]
[311112166,1704912637926,-1272.57260782,0.0002871,2]
[311112170,1704912638158,-403.09346206,0.0002871,2]
[311112232,1704912639361,156.55972097,0.00022044,2]
[311112233,1704912640323,158.33084047,0.00022044,2]
[311112235,1704912640657,742.46740971,0.00022044,2]
[311112236,1704912641760,-802.36016955,0.0002871,2]
[311112237,1704912641770,-953.14979961,0.0002871,2]
[311112238,1704912641782,-46.85020039,0.0002871,2]
[311112239,1704912641791,-1847.19343045,0.00028781,2]
[311112257,1704912642873,-334.00825004,0.00028781,2]
[311112259,1704912643232,-1895.729958,0.00028781,2]
[311112260,1704912643251,-5000.42043848,0.00028781,2]
[311112285,1704912645913,-495.06200404,0.00028781,2]
[311112286,1704912645925,-992.67369814,0.00028781,2]
[311112287,1704912645970,-5981.164186,0.00028781,2]
[311112288,1704912645981,-992.61803485,0.00028781,2]
[311112289,1704912645991,-450.0,0.00029,3]
[311112290,1704912646000,-210.01,0.00029329,2]
[311112291,1704912646009,-1322.64544586,0.00029485,2]
[311112292,1704912646018,-217.94,0.00029504,2]
[311112293,1704912646027,-2136.08960768,0.00029598,2]
[311112294,1704912646037,-213.86181292,0.00029598,2]
[311112295,1704912646046,-168.92940666,0.00029598,2]
[311112296,1704912646055,-269.56124623,0.00029598,2]
[311112297,1704912646064,-200.18643562,0.00029598,2]
[311112298,1704912646074,-159.06634287,0.00029598,2]
[311112299,1704912646085,-472.16750413,0.00029598,2]
[311112300,1704912646094,-255.60792486,0.00029598,2]
[311112301,1704912646103,-1887.26460822,0.00029598,2]
[311112302,1704912646113,-161.51672734,0.00029598,2]
[311112303,1704912646125,-2224.94721723,0.00029598,2]
[311112304,1704912646136,-409.63033263,0.00029598,2]
[311112305,1704912646146,-217.90339848,0.00029598,2]
[311112306,1704912646156,-1254.29701492,0.00029598,2]
[311112307,1704912646166,-1060.13599255,0.00029598,2]
[311112308,1704912646175,-284.94187757,0.00029598,2]
[311112309,1704912646185,-1114.56444054,0.00029599,2]
[311112310,1704912646194,-383.21919555,0.00029599,2]
[311112311,1704912646204,-500.67577631,0.00029599,2]
[311112312,1704912646213,-19121.7555,0.000296,2]
[311112313,1704912646224,-6453.1504,0.000296,2]
[311112314,1704912646235,-3649.5536,0.000296,2]
[311112315,1704912646245,-1500.0,0.00029604,2]
[311112316,1704912646255,-150.0,0.00029641,2]
[311112317,1704912646266,-1089.62605832,0.00029698,2]
[311112318,1704912646275,-1260.68225345,0.00029699,2]
[311112323,1704912646478,-7500.0,0.000297,2]
[311112324,1704912646488,-675.1928,0.000297,2]
[311112325,1704912646499,-500.0,0.000297,2]
[311112326,1704912646510,-34772.25904517,0.000297,2]
[311112327,1704912646528,-473.05077416,0.000297,2]
[311112328,1704912646540,-2325.8,0.000297,2]
[311112329,1704912646565,-779.38598227,0.000297,2]
[311112330,1704912646579,-1335.57189952,0.000297,2]
[311112331,1704912646600,-768.0,0.000297,2]
[311112332,1704912646612,-267.12499998,0.000297,2]
[311112333,1704912646628,-335.30570427,0.000297,2]
[311112334,1704912646640,-4149.38668599,0.000297,2]
[311112335,1704912646654,-551.28542087,0.000297,2]
[311112336,1704912647596,-373.99662793,0.000297,2]
[311112337,1704912647610,-3739.33875984,0.000297,2]
[311112338,1704912647620,-42444.73849228,0.000297,2]
[311112339,1704912647632,-54514.18680772,0.000297,2]
[311112340,1704912647641,-165.75452077,0.000297,2]
[311112341,1704912647650,-169.42909074,0.000297,2]
[311112342,1704912647662,-284.07214176,0.0002971,2]
[311112343,1704912647672,-154.72348001,0.0002979,2]
[311112344,1704912647682,-340.88604366,0.00029798,6]
[311112345,1704912647693,-386.88076274,0.00029798,2]
[311112346,1704912647702,-7117.67830184,0.00029799,2]
[311112347,1704912647711,-3024.65159585,0.00029799,2]
[311112348,1704912647721,-42171.53667484,0.00029799,2]
[311112349,1704912647731,-18471.23048837,0.000298,2]
[311112350,1704912647743,-20055.07270493,0.000298,2]
[311112351,1704912647754,-507.66341396,0.000298,2]
[311112352,1704912647766,-866.29924,0.000298,2]
[311112353,1704912647777,-3011.84866342,0.000298,2]
[311112354,1704912647789,-347.44581063,0.000298,2]
[311112355,1704912647888,176.98991788,0.00022044,2]
[311112356,1704912650711,155.0,0.00022044,2]
[311112357,1704912654885,9883.27134721,0.00022044,2]
[311112358,1704912656151,2175.68268884,0.00021824,2]
[311112359,1704912662013,193.18444918,0.0002,2]
[311112360,1704912674183,2000.29176192,0.00021824,2]
[311112361,1704912695347,1031.99438221,0.00022044,2]
[311112362,1704912695875,1096.02714429,0.00022044,2]
[311112363,1704912696262,1597.16146688,0.00017635,2]
[311112364,1704912702707,155.0,0.00022044,2]
[311112365,1704912706456,543.47920788,0.00022044,2]
[311112366,1704912706559,3197.79936034,0.00022044,2]
[311112367,1704912708658,5332.86080225,0.00022044,2]
[311112368,1704912724356,250.0,0.000192,2]
[311112369,1704912729089,169.51,0.00028656,120]
[311112370,1704912757905,609.01942081,0.00022044,2]
[311112371,1704912759873,1096.02714429,0.00022044,2]
[311112372,1704912759899,189.49317273,0.00020698,2]
[311112373,1704912760584,3197.79936034,0.00022044,2]
[311112374,1704912760778,6075.32821196,0.00022044,2]
[311112375,1704912760810,1891.38317566,0.00022044,2]
[311112376,1704912761362,1031.99438221,0.00022044,2]
[311112377,1704912761560,11315.78221027,0.00022997,5]
[311112378,1704912761586,9284.85537495,0.00022997,5]
[311112379,1704912761607,2660.15446985,0.00022997,5]
[311112380,1704912761973,401.7531665,0.00021383,2]
[311112381,1704912762180,18941.03973157,0.00022044,2]
[311112382,1704912764283,1597.16146688,0.00017635,2]
[311112383,1704912764345,283.87961777,0.00022044,2]
[311112384,1704912764623,531.67628362,0.00022044,2]
[311112385,1704912764900,500.0,0.00022044,2]
[311112386,1704912764926,15683.21613264,0.00022044,2]
[311112387,1704912765383,260.5314943,0.00022044,2]
[311112388,1704912765846,197.67004972,0.00022044,2]
[311112389,1704912766484,482.73685911,0.00018398,2]
[311112390,1704912767360,176.98991788,0.00022044,2]
[311112391,1704912767701,200.21979921,0.00020698,2]
[311112392,1704912768977,282.78782843,0.00022044,2]
[311112393,1704912769036,198.21015724,0.00022044,2]
[311112394,1704912769062,282.12857278,0.00022044,2]
[311112395,1704912769291,1021.6094888,0.00022044,2]
[311112396,1704912769765,883.3850575,0.00022044,2]
[311112397,1704912770186,520.78591039,0.00022044,2]
[311112398,1704912770380,543.47920788,0.00022044,2]
[311112399,1704912771239,208.81479304,0.00022044,2]
[311112400,1704912771375,5184.28682441,0.00022044,2]
[311112401,1704912771415,291.71338211,0.00022044,2]
[311112402,1704912771629,270.12311676,0.00022044,2]
[311112403,1704912772231,559.33897738,0.00020468,2]
[311112404,1704912772721,155.0,0.00022044,2]
[311112405,1704912773028,532.13205427,0.00022044,2]
[311112406,1704912773371,156.55972097,0.00022044,2]
[311112407,1704912774144,4175.97445076,0.00021824,2]
[311112408,1704912774246,283.84561309,0.00022044,2]
[311112409,1704912774463,7672.98518074,0.00021934,2]
[311112410,1704912775883,1096.02714429,0.00022044,2]
[311112411,1704912775910,155.0,0.00022044,2]
[311112412,1704912777331,171.11,0.00016712,2]
[311112413,1704912777364,494.53661029,0.00022044,2]
[311112414,1704912777911,757.58281181,0.00022044,2]
[311112415,1704912777958,401.7531665,0.00021383,2]
[311112416,1704912778655,6075.32821196,0.00022044,2]
[311112417,1704912778813,190.67674816,0.00022044,2]
[311112418,1704912780598,533.25897717,0.00022044,2]
[311112419,1704912782570,464.94252903,0.00022044,2]
[311112420,1704912784181,18941.03973157,0.00022044,2]
[311112421,1704912784276,1597.16146688,0.00017635,2]
[311112422,1704912784883,348.85479552,0.00022044,2]
[311112423,1704912784908,15683.21613264,0.00022044,2]
[311112424,1704912786161,520.78591039,0.00022044,2]
[311112425,1704912786960,282.78782843,0.00022044,2]
[311112426,1704912787284,1021.6094888,0.00022044,2]
[311112427,1704912787538,176.98991788,0.00022044,2]
[311112428,1704912788387,543.47920788,0.00022044,2]
[311112429,1704912792719,155.0,0.00022044,2]
[311112430,1704912793346,5205.87852052,0.00022044,2]
[311112431,1704912793383,338.89631933,0.00022044,2]
[311112432,1704912795885,1096.02714429,0.00022044,2]
[311112433,1704912796144,2175.68268884,0.00021824,2]
[311112434,1704912797359,156.55972097,0.00022044,2]
[311112435,1704912797927,156.36997875,0.00022044,2]
[311112436,1704912797955,401.7531665,0.00021383,2]
[311112437,1704912800211,7682.37529292,0.00022044,2]
[311112438,1704912800246,173.22927635,0.00022044,2]
[311112439,1704912802269,342.5850885,0.00017635,2]
[311112440,1704912804678,6075.32821196,0.00022044,2]
[311112441,1704912804962,282.78782843,0.00022044,2]
[311112442,1704912806890,1740.1203728,0.00022044,2]
[311112443,1704912807315,1021.6094888,0.00022044,2]
[311112444,1704912807368,176.98991788,0.00022044,2]
[311112445,1704912808152,520.78591039,0.00022044,2]
[311112446,1704912808383,543.47920788,0.00022044,2]
[311112447,1704912812143,2175.68268884,0.00021824,2]
[311112448,1704912813380,291.71338211,0.00022044,2]
[311112449,1704912816188,18941.03973157,0.00022044,2]
[311112450,1704912816718,270.65488998,0.00022044,2]
[311112451,1704912817362,156.55972097,0.00022044,2]
[311112452,1704912817905,1096.02714429,0.00022044,2]
[311112453,1704912818606,531.67628362,0.00022044,2]
[311112454,1704912820014,401.7531665,0.00021383,2]
[311112455,1704912820287,1593.51564458,0.00017635,2]
[311112456,1704912821372,234.60743035,0.00022044,2]
[311112457,1704912821709,155.0,0.00022044,2]
[311112458,1704912821920,609.01942081,0.00022044,2]
[311112459,1704912822668,6075.32821196,0.00022044,2]
[311112460,1704912823354,1031.99438221,0.00022044,2]
[311112461,1704912823446,155.0,0.00022044,2]
[311112462,1704912823829,312.98306208,0.00022044,2]
[311112463,1704912824164,412.39057328,0.00022044,2]
[311112464,1704912824985,282.78782843,0.00022044,2]
[311112465,1704912825040,155.38829746,0.00022044,2]
[311112466,1704912825557,532.55789459,0.00022044,2]
[311112467,1704912825769,883.93852646,0.00022044,2]
[311112468,1704912826829,1891.38317566,0.00022044,2]
[311112469,1704912826900,15683.21613264,0.00022044,2]
[311112470,1704912827349,5184.28682441,0.00022044,2]
[311112471,1704912827374,212.89385023,0.00022044,2]
[311112472,1704912828498,543.47920788,0.00022044,2]
[311112473,1704912829298,1021.6094888,0.00022044,2]
[311112474,1704912830155,2175.68268884,0.00021824,2]
[311112475,1704912833364,156.55972097,0.00022044,2]
[311112476,1704912833389,292.00001324,0.00022044,2]
[311112477,1704912833890,544.08347778,0.00022044,2]
[311112478,1704912838894,533.42205377,0.00022044,2]
[311112479,1704912838929,18941.03973157,0.00022044,2]
[311112480,1704912839368,215.66158865,0.00022044,2]
[311112481,1704912839963,524.27291048,0.00021383,2]
[311112482,1704912841423,155.0,0.00022044,2]
[311112483,1704912842809,1891.38317566,0.00022044,2]
[311112484,1704912842901,2221.76241649,0.00022044,2]
[311112485,1704912842972,282.78782843,0.00022044,2]
[311112486,1704912843835,312.98306208,0.00022044,2]
[311112487,1704912844392,539.30075638,0.00022044,2]
[311112488,1704912844664,610.87382745,0.00022044,2]
[311112489,1704912845552,273.62271392,0.00022044,2]
[311112490,1704912845945,1189.399999,0.0002,2]
[311112491,1704912847353,1559.67396984,0.00022044,2]
[311112492,1704912851362,156.55972097,0.00022044,2]
[311112493,1704912852210,2175.68268884,0.00021824,2]
[311112494,1704912853304,492.83720756,0.00022044,2]
[311112495,1704912860964,317.49096664,0.00022044,2]
[311112497,1704912867449,156.55972097,0.00022044,2]
[311112498,1704912868164,2175.68268884,0.00021824,2]
[311112499,1704912882174,2175.68268884,0.00021824,2]
[311112500,1704912885379,156.55972097,0.00022044,2]
[311112501,1704912898164,2175.68268884,0.00021606,2]
[311112502,1704912903390,156.55972097,0.00021824,2]
[311112503,1704912914165,2175.68268884,0.00021606,2]
[311112504,1704912923377,156.55972097,0.00021824,2]
[311112505,1704912934156,2175.68268884,0.00021606,2]
[311112506,1704912941383,191.17097585,0.00021824,2]
[311112507,1704912952439,1696.4456693,0.00021606,2]
[311112508,1704913025378,2157.841473,0.00022426,2]
[311112510,1704913098368,158.30299121,0.00022439,2]
[311112511,1704913144399,188.6909,0.00022434,2]